bitfinex/quotes_SOLUSD_20220306
["timestamp","ask_amount","ask_price","bid_price","bid_amount"]
[1646550193404,1.54139107,88.525,88.483,22.7089]
[1646550196516,1.54139107,88.526,88.483,22.7089]
[1646550196717,1.54139107,88.525,88.483,22.7089]
[1646550197416,1.54139107,88.526,88.483,22.7089]
[1646550197817,1.54139107,88.525,88.483,22.7089]
[1646550199020,1.54139107,88.524,88.483,22.7089]
[1646550199717,1.54139107,88.525,88.483,22.7089]
[1646550200817,1.54139107,88.524,88.483,22.7089]
[1646550201018,1.54139107,88.525,88.483,22.7089]
[1646550202118,1.54139107,88.524,88.483,22.7089]
[1646550202320,1.54139107,88.525,88.483,22.7089]
[1646550202520,1.54139107,88.524,88.483,22.7089]
[1646550203320,1.54139107,88.524,88.483,39.4725]
[1646550204828,1.54139107,88.524,88.483,22.7089]
[1646550205028,1.54139107,88.523,88.483,22.7089]
[1646550205228,1.54139107,88.521,88.483,22.7089]
[1646550205430,1.54139107,88.519,88.483,22.7089]
[1646550206128,1.54139107,88.519,88.463,57.56783101]
[1646550206129,1.54139107,88.515,88.463,57.56783101]
[1646550206331,1.54139107,88.514,88.464,22.6898]
[1646550208832,1.54139107,88.515,88.464,22.6898]
[1646550209231,1.54139107,88.516,88.464,22.6898]
[1646550209433,1.54139107,88.517,88.464,22.6898]
[1646550209731,1.54139107,88.516,88.464,22.6898]
[1646550210031,1.54139107,88.515,88.464,22.6898]
[1646550210735,1.54139107,88.516,88.464,22.6898]
[1646550212135,1.54139107,88.515,88.464,22.6898]
[1646550212336,1.54139107,88.516,88.464,22.6898]
[1646550212636,1.54139107,88.517,88.464,22.6898]
[1646550213836,24.0495,88.534,88.464,22.6898]
[1646550213837,1.54139107,88.516,88.464,22.6898]
[1646550214139,1.54139107,88.517,88.464,22.6898]
[1646550215237,1.54139107,88.518,88.464,22.6898]
[1646550216338,1.54139107,88.517,88.464,22.6898]
[1646550216540,1.54139107,88.517,88.465,46.99237315]
[1646550216742,1.54139107,88.518,88.465,46.99237315]
[1646550216939,1.54139107,88.518,88.464,22.6898]
[1646550219847,1.54139107,88.519,88.464,22.6898]
[1646550220346,1.54139107,88.518,88.464,22.6898]
[1646550223549,1.54139107,88.517,88.464,22.6898]
[1646550223950,1.54139107,88.518,88.464,22.6898]
[1646550224149,1.54139107,88.517,88.464,22.6898]
[1646550224549,1.54139107,88.515,88.464,22.6898]
[1646550225454,1.54139107,88.514,88.464,22.6898]
[1646550225652,1.54139107,88.515,88.464,22.6898]
[1646550225852,1.54139107,88.513,88.464,22.6898]
[1646550226052,1.54139107,88.502,88.464,22.6898]
[1646550226852,47.91841775,88.501,88.464,22.6898]
[1646550227051,49.45980882,88.501,88.464,22.6898]
[1646550227252,112.5,88.5,88.432,2.83613526]
[1646550227452,137.75119107,88.5,88.437,22.7209]
[1646550227652,1.54139107,88.498,88.437,22.7209]
[1646550227854,1.54139107,88.496,88.437,22.7209]
[1646550228054,1.54139107,88.494,88.437,22.7209]
[1646550228253,1.54139107,88.495,88.437,22.7209]
[1646550228454,1.54139107,88.494,88.437,22.7209]
[1646550228654,1.54139107,88.495,88.437,22.7209]
[1646550229254,1.54139107,88.498,88.437,22.7209]
[1646550229456,1.54139107,88.499,88.437,22.7209]
[1646550230173,1.54139107,88.498,88.437,22.7209]
[1646550230778,1.54139107,88.498,88.452,1.00151145]
[1646550230974,1.54139107,88.495,88.452,1.00151145]
[1646550231176,1.54139107,88.494,88.452,1.00151145]
[1646550231474,1.54139107,88.496,88.452,1.00151145]
[1646550231676,1.54139107,88.495,88.452,1.00151145]
[1646550232277,1.54139107,88.497,88.452,1.00151145]
[1646550232478,1.54139107,88.485,88.406,17.0658]
[1646550232681,1.54139107,88.475,88.412,24.95]
[1646550232889,1.54139107,88.465,88.412,24.95]
[1646550233077,0.23419585,88.464,88.412,24.95]
[1646550233278,0.23419585,88.459,88.412,24.95]
[1646550233478,0.23419585,88.457,88.412,24.95]
[1646550233677,1.54139107,88.455,88.412,24.95]
[1646550234078,1.54139107,88.456,88.412,24.95]
[1646550234279,1.54139107,88.455,88.412,24.95]
[1646550234877,1.54139107,88.455,88.395,23.8567]
[1646550235078,0.23419585,88.453,88.396,23.9986]
[1646550237080,112.5,88.45,88.396,23.9986]
[1646550237279,112.5,88.448,88.396,23.9986]
[1646550238781,112.5,88.448,88.397,5.654]
[1646550240195,112.5,88.448,88.396,23.9986]
[1646550243393,70.50541775,88.449,88.371,5.654]
[1646550243394,67.91,88.443,88.371,5.654]
[1646550243600,67.91,88.435,88.372,24.349]
[1646550243799,112.5,88.43,88.373,5.655]
[1646550243995,0.23419585,88.429,88.372,24.349]
[1646550244195,112.5,88.428,88.372,24.349]
[1646550244494,0.23419585,88.427,88.372,24.349]
[1646550244895,50.46547148,88.429,88.373,8.49213526]
[1646550245295,50.46547148,88.429,88.372,23.849]
[1646550245501,112.5,88.428,88.372,23.849]
[1646550246002,50.46547148,88.429,88.372,23.849]
[1646550246202,50.46547148,88.429,88.373,5.656]
[1646550246600,112.5,88.428,88.372,23.849]
[1646550247402,112.5,88.428,88.373,5.656]
[1646550248423,67.79,88.425,88.373,5.656]
[1646550248602,112.5,88.422,88.363,24.9424]
[1646550248803,112.5,88.42,88.363,24.9424]
[1646550249204,112.5,88.42,88.364,5.656]
[1646550249609,67.79,88.419,88.364,5.656]
[1646550249808,112.5,88.41,88.338,19.79783526]
[1646550250009,112.5,88.408,88.338,19.79783526]
[1646550250211,112.5,88.408,88.339,21.12624734]
[1646550250410,112.5,88.408,88.339,23.9623826]
[1646550250610,112.5,88.408,88.34,2.83613526]
[1646550251213,112.5,88.408,88.341,21.12624734]
[1646550251411,112.5,88.408,88.341,18.12624734]
[1646550251610,112.5,88.408,88.341,2.83613526]
[1646550252312,112.5,88.408,88.342,5.657]
[1646550252914,112.5,88.408,88.343,23.8825]
[1646550253115,112.5,88.408,88.344,5.657]
[1646550255931,112.5,88.408,88.345,2.83613526]
[1646550256135,112.5,88.408,88.346,5.657]
[1646550256334,112.5,88.408,88.347,52.50057842]
[1646550256532,112.5,88.408,88.348,5.657]
[1646550256734,23.5716,88.409,88.348,8.49313526]
[1646550257250,23.5716,88.409,88.348,2.83613526]
[1646550257844,112.5,88.408,88.348,2.83613526]
[1646550260342,112.5,88.408,88.349,5.657]
[1646550260545,112.5,88.408,88.344,5.657]
[1646550265847,23.5716,88.409,88.314,2.83613526]
[1646550265848,112.5,88.396,88.314,2.83613526]
[1646550266045,0.38093664,88.287,88.264,0.56626345]
[1646550266546,1.54139107,88.282,88.264,0.56626345]
[1646550266747,1.54139107,88.281,88.264,0.56626345]
[1646550267049,1.54139107,88.278,88.264,0.56626345]
[1646550267248,1.54139107,88.275,88.264,0.56626345]
[1646550267444,1.54139107,88.274,88.264,0.56626345]
[1646550267844,3.03219997,88.273,88.264,0.56626345]
[1646550268253,0.59614114,88.261,88.225,5.664]
[1646550268446,0.59614114,88.261,88.21,129.1043]
[1646550268447,0.59614114,88.261,88.218,5.666]
[1646550268648,0.53310249,88.26,88.211,5.666]
[1646550268845,0.53310249,88.26,88.195,16.6075]
[1646550268846,0.53310249,88.26,88.196,5.666]
[1646550269046,1.54139107,88.259,88.196,5.666]
[1646550269248,0.59614114,88.261,88.182,47.3363]
[1646550269249,0.53310249,88.258,88.197,58.77501827]
[1646550269447,0.53310249,88.258,88.197,76.11680593]
[1646550269652,0.59614114,88.261,88.198,112.5]
[1646550269848,0.59614114,88.261,88.2,16.26]
[1646550270249,0.59614114,88.261,88.21,17.0004]
[1646550270450,0.59614114,88.261,88.211,5.666]
[1646550270650,0.59614114,88.261,88.212,49.00825128]
[1646550270851,0.59614114,88.261,88.213,5.666]
[1646550271250,0.59614114,88.261,88.213,23.00778766]
[1646550271447,0.59614114,88.261,88.214,17.34178766]
[1646550271647,0.59614114,88.261,88.215,5.666]
[1646550272050,0.59614114,88.261,88.216,17.34178766]
[1646550272351,0.59614114,88.261,88.22,17.0014]
[1646550272550,0.59614114,88.261,88.221,5.666]
[1646550272750,0.59614114,88.261,88.221,23.00778766]
[1646550272951,0.59614114,88.261,88.222,17.34178766]
[1646550273150,0.59614114,88.261,88.223,5.666]
[1646550273351,0.59614114,88.261,88.23,17.0004]
[1646550273551,0.59614114,88.261,88.231,5.666]
[1646550273751,0.59614114,88.261,88.231,23.00778766]
[1646550274355,4.114e-05,88.261,88.232,61.26609684]
[1646550274553,1.54139107,88.292,88.234,112.5]
[1646550274752,1.54139107,88.307,88.241,112.5]
[1646550274960,1.54139107,88.307,88.26,16.987]
[1646550275157,5.664,88.35,88.26,16.987]
[1646550275158,1.54139107,88.321,88.261,5.663]
[1646550275359,1.54139107,88.325,88.262,83.26522483]
[1646550275560,1.54139107,88.324,88.263,5.662]
[1646550275767,1.54139107,88.324,88.263,23.00378766]
[1646550275959,1.54139107,88.326,88.263,23.00378766]
[1646550276159,1.54139107,88.326,88.264,17.34178766]
[1646550276359,1.54139107,88.326,88.27,16.9906]
[1646550276560,1.54139107,88.323,88.271,5.662]
[1646550277058,1.54139107,88.321,88.271,5.662]
[1646550277260,1.54139107,88.321,88.27,16.9906]
[1646550277461,1.54139107,88.322,88.27,16.9906]
[1646550278467,1.54139107,88.325,88.27,16.9906]
[1646550278665,1.54139107,88.327,88.28,16.9905]
[1646550278863,1.54139107,88.327,88.281,5.662]
[1646550279063,1.54139107,88.328,88.281,5.662]
[1646550279263,1.54139107,88.328,88.267,56.48]
[1646550279477,1.54139107,88.331,88.268,5.662]
[1646550279665,1.54139107,88.331,88.269,56.48]
[1646550279863,1.54139107,88.332,88.27,5.662]
[1646550280064,43.55516732,88.352,88.27,5.662]
[1646550280065,1.54139107,88.334,88.27,5.662]
[1646550280262,1.54139107,88.334,88.291,57.53630996]
[1646550280464,1.54139107,88.337,88.292,5.66]
[1646550280867,1.54139107,88.338,88.292,5.66]
[1646550281470,1.54139107,88.339,88.292,5.66]
[1646550281869,1.54139107,88.34,88.3,16.987]
[1646550282196,1.54139107,88.339,88.301,5.66]
[1646550282391,1.54139107,88.345,88.301,11.97]
[1646550282591,4.62596324,88.395,88.302,50.16703526]
[1646550282592,1.54139107,88.35,88.302,50.16703526]
[1646550282793,1.54139107,88.353,88.303,5.66]
[1646550282993,1.54139107,88.361,88.31,16.9825]
[1646550283192,4.62596324,88.41,88.311,62.14]
[1646550283193,1.54139107,88.362,88.311,62.14]
[1646550283394,1.54139107,88.366,88.313,56.48]
[1646550283592,1.54139107,88.369,88.314,174.639]
[1646550283791,1.54139107,88.376,88.316,112.5]
[1646550283991,6.18955266,88.398,88.34,16.9767]
[1646550284192,1.52063647,88.379,88.341,5.658]
[1646550284393,1.52063647,88.383,88.342,63.51809545]
[1646550284894,1.52063647,88.383,88.343,5.658]
[1646550285300,1.52063647,88.383,88.343,64.97413526]
[1646550285495,1.52063647,88.383,88.35,16.9764]
[1646550285695,1.52063647,88.384,88.351,5.658]
[1646550286097,1.52063647,88.383,88.351,5.658]
[1646550286396,1.52063647,88.388,88.351,5.658]
[1646550286597,1.52063647,88.387,88.351,5.658]
[1646550286994,1.52063647,88.385,88.351,5.658]
[1646550287195,1.52063647,88.384,88.344,2.83613526]
[1646550287795,1.52063647,88.384,88.345,5.658]
[1646550287995,1.52063647,88.38,88.345,5.658]
[1646550288296,1.52063647,88.381,88.344,2.83613526]
[1646550288495,1.52063647,88.38,88.331,23.2263]
[1646550288899,1.52063647,88.379,88.331,23.2263]
[1646550289095,1.52063647,88.378,88.34,16.9793]
[1646550289295,1.52063647,88.382,88.34,16.9793]
[1646550289496,1.52063647,88.381,88.34,16.9793]
[1646550289695,1.52063647,88.382,88.34,16.9793]
[1646550289899,1.52063647,88.38,88.34,16.9793]
[1646550290097,1.52063647,88.379,88.34,16.9793]
[1646550290297,1.52063647,88.378,88.34,16.9793]
[1646550290501,1.52063647,88.379,88.34,16.9793]
[1646550290701,1.52063647,88.378,88.34,16.9793]
[1646550290998,1.52063647,88.379,88.34,16.9793]
[1646550292099,1.52063647,88.378,88.34,16.9793]
[1646550292299,1.52063647,88.385,88.34,16.9793]
[1646550292501,1.52063647,88.385,88.34,19.81543526]
[1646550292701,40.25899898,88.385,88.34,19.81543526]
[1646550294100,1.52063647,88.386,88.34,19.81543526]
[1646550294301,1.52063647,88.387,88.34,19.81543526]
[1646550294502,1.52063647,88.388,88.34,19.81543526]
[1646550294702,1.52063647,88.389,88.34,19.81543526]
[1646550295104,1.52063647,88.386,88.34,19.81543526]
[1646550295501,1.52063647,88.387,88.34,19.81543526]
[1646550295701,1.52063647,88.389,88.34,19.81543526]
[1646550296707,1.52063647,88.389,88.373,0.52034785]
[1646550297103,0.53660595,88.366,88.34,19.81543526]
[1646550311421,4.242e-05,88.369,88.34,19.81543526]
[1646550312025,3.08299191,88.384,88.34,19.81543526]
[1646550312623,3.08299191,88.385,88.34,19.81543526]
[1646550312824,3.08299191,88.384,88.34,19.81543526]
[1646550313028,3.08299191,88.385,88.34,19.81543526]
[1646550313626,3.08299191,88.387,88.34,19.81543526]
[1646550313827,3.08299191,88.388,88.34,19.81543526]
[1646550314829,3.08299191,88.387,88.34,19.81543526]
[1646550315029,3.08299191,88.386,88.34,19.81543526]
[1646550319453,3.08299191,88.387,88.341,5.658]
[1646550319952,3.08299191,88.387,88.342,2.83613526]
[1646550320154,3.08299191,88.387,88.343,5.658]
[1646550320954,3.08299191,88.386,88.343,5.658]
[1646550321853,6.18936024,88.405,88.343,5.658]
[1646550321854,3.08299191,88.385,88.343,5.658]
[1646550322655,3.08299191,88.386,88.343,5.658]
[1646550323356,3.08299191,88.386,88.35,16.9772]
[1646550323555,3.08299191,88.386,88.351,5.658]
[1646550323755,3.08299191,88.387,88.352,63.58027285]
[1646550323955,3.08299191,88.386,88.353,5.658]
[1646550325655,3.08299191,88.386,88.353,8.49413526]
[1646550326255,6.18936024,88.385,88.353,8.49413526]
[1646550326456,3.08299191,88.386,88.353,8.49413526]
[1646550326655,3.08299191,88.387,88.353,5.658]
[1646550327559,3.08299191,88.386,88.353,5.658]
[1646550327958,6.18936024,88.385,88.353,5.658]
[1646550328358,3.08299191,88.386,88.353,5.658]
[1646550328561,6.18936024,88.384,88.353,5.658]
[1646550328761,3.08299191,88.386,88.353,5.658]
[1646550329558,3.08299191,88.384,88.353,5.658]
[1646550329760,3.08299191,88.383,88.344,5.658]
[1646550329959,3.08299191,88.382,88.344,5.658]
[1646550333963,3.08299191,88.381,88.344,5.658]
[1646550337766,3.08299191,88.381,88.343,2.83613526]
[1646550338368,3.08299191,88.382,88.343,2.83613526]
[1646550341589,3.08299191,88.382,88.343,2.83613526]
[1646550342087,3.08299191,88.383,88.339,8.49413526]
[1646550342388,3.08299191,88.382,88.339,8.49413526]
[1646550344695,3.08299191,88.382,88.339,5.658]
[1646550345495,3.08299191,88.383,88.34,16.9793]
[1646550345695,6.18936024,88.388,88.34,16.9793]
[1646550345696,3.08299191,88.384,88.34,16.9793]
[1646550346500,3.08299191,88.384,88.341,2.83613526]
[1646550346999,6.18936024,88.383,88.35,16.9773]
[1646550347400,3.08299191,88.394,88.351,2.83613526]
[1646550347598,3.08299191,88.394,88.352,62.33586645]
[1646550347800,3.08299191,88.395,88.352,62.33586645]
[1646550347997,6.18877905,88.393,88.353,25.57013526]
[1646550348199,9.27177096,88.394,88.353,25.57013526]
[1646550348500,6.18877905,88.393,88.354,2.83613526]
[1646550348705,3.08299191,88.394,88.354,2.83613526]
[1646550348900,3.08299191,88.393,88.353,22.734]
[1646550349501,3.08299191,88.391,88.353,22.734]
[1646550350302,3.08299191,88.389,88.353,22.734]
[1646550350702,3.08299191,88.39,88.353,22.734]
[1646550353507,5.79221382,88.39,88.35,16.9773]
[1646550353709,3.08299191,88.381,88.332,2.83613526]
[1646550353908,3.08299191,88.38,88.321,24.6433]
[1646550354311,3.08299191,88.378,88.321,24.6433]
[1646550354508,3.08299191,88.378,88.332,53.04955592]
[1646550355110,3.08299191,88.377,88.332,53.04955592]
[1646550355510,3.08299191,88.379,88.332,53.04955592]
[1646550355709,3.08299191,88.383,88.332,53.04955592]
[1646550355910,3.08299191,88.382,88.333,23.9728]
[1646550357931,3.08299191,88.381,88.333,23.9728]
[1646550358531,3.08299191,88.38,88.333,23.9728]
[1646550359131,3.08299191,88.381,88.333,23.9728]
[1646550359633,6.18877905,88.38,88.333,23.9728]
[1646550359832,3.08299191,88.381,88.333,23.9728]
[1646550360232,3.08299191,88.381,88.34,16.9792]
[1646550360433,3.08299191,88.398,88.34,23.1792]
[1646550360635,3.08299191,88.398,88.341,2.83613526]
[1646550360832,6.1884633,88.397,88.341,2.83613526]
[1646550361232,6.1884633,88.4,88.341,2.83613526]
[1646550361433,6.1884633,88.396,88.341,2.83613526]
[1646550361632,3.08299191,88.399,88.341,2.83613526]
[1646550362135,3.08299191,88.399,88.35,16.9766]
[1646550362332,3.08299191,88.399,88.351,60.6376085]
[1646550363535,6.1884633,88.4,88.351,60.6376085]
[1646550365942,9.27145521,88.4,88.351,60.6376085]
[1646550367043,6.1884633,88.4,88.351,60.6376085]
[1646550370149,9.27145521,88.4,88.351,60.6376085]
[1646550370451,6.1884633,88.4,88.351,60.6376085]
[1646550373055,6.1884633,88.4,88.352,22.8746]
[1646550374655,6.1884633,88.4,88.353,5.657]
[1646550375257,9.27145521,88.4,88.353,5.657]
[1646550375668,3.08299191,88.399,88.353,5.657]
[1646550376086,6.1884633,88.4,88.353,5.657]
[1646550379084,0.52594453,88.399,88.353,5.657]
[1646550379285,6.1884633,88.398,88.353,5.657]
[1646550379990,0.52594453,88.399,88.352,22.8746]
[1646550380188,6.18854748,88.398,88.352,22.8746]
[1646550382892,6.18854748,88.398,88.353,5.657]
[1646550385001,0.52564666,88.397,88.353,5.657]
[1646550385194,6.18854748,88.396,88.353,5.657]
[1646550385793,3.08299191,88.389,88.353,5.657]
[1646550385994,3.08299191,88.388,88.353,5.657]
[1646550387697,3.08299191,88.389,88.353,5.657]
[1646550388195,3.08299191,88.388,88.353,5.657]
[1646550388597,3.08299191,88.388,88.351,60.6376085]
[1646550388797,3.08299191,88.386,88.351,60.6376085]
[1646550390400,3.08299191,88.387,88.351,60.6376085]
[1646550392303,6.18854748,88.394,88.351,60.6376085]
[1646550392304,3.08299191,88.388,88.351,60.6376085]
[1646550393203,3.08299191,88.388,88.332,22.9106]
[1646550394305,3.08299191,88.388,88.341,61.05568119]
[1646550394505,3.08299191,88.388,88.342,22.8542]
[1646550394805,3.08299191,88.389,88.342,22.8542]
[1646550395205,24.3611,88.388,88.342,22.8542]
[1646550395408,6.18854748,88.387,88.342,22.8542]
[1646550397513,6.18854748,88.387,88.343,2.83613526]
[1646550398112,24.3611,88.388,88.343,2.83613526]
[1646550399311,6.18931018,88.387,88.343,2.83613526]
[1646550401312,24.3611,88.388,88.343,2.83613526]
[1646550404738,6.18936007,88.387,88.343,2.83613526]
[1646550411244,6.18936007,88.387,88.342,22.8542]
[1646550411444,6.18936007,88.387,88.331,26.06243526]
[1646550411445,3.08299191,88.376,88.331,2.83613526]
[1646550411641,0.53310249,88.375,88.309,2.83613526]
[1646550411841,0.53310249,88.364,88.309,2.83613526]
[1646550412041,0.53310249,88.364,88.281,24.6714]
[1646550412242,3.08299191,88.355,88.267,23.5809]
[1646550412444,0.53310249,88.354,88.241,24.6714]
[1646550412642,3.08299191,88.347,88.242,23.5809]
[1646550412844,3.08299191,88.344,88.242,23.5809]
[1646550413142,3.08299191,88.343,88.254,73.39879517]
[1646550413344,3.08299191,88.343,88.255,49.13240465]
[1646550413542,3.08299191,88.343,88.255,76.56228764]
[1646550413743,3.08299191,88.343,88.256,2.83613526]
[1646550413943,3.08299191,88.34,88.256,50.92847247]
[1646550414143,107.2567,88.35,88.256,50.92847247]
[1646550414144,8.74499191,88.339,88.256,50.92847247]
[1646550414544,115.58299191,88.338,88.257,2.83613526]
[1646550414747,112.5,88.336,88.257,2.83613526]
[1646550414944,121.24499191,88.335,88.257,2.83613526]
[1646550415544,118.162,88.335,88.257,2.83613526]
[1646550416645,16.26,88.33,88.257,2.83613526]
[1646550417046,5.662,88.329,88.257,2.83613526]
[1646550418247,16.26,88.33,88.257,2.83613526]
[1646550419450,5.662,88.337,88.26,16.9946]
[1646550419649,23.2067,88.338,88.26,16.9946]
[1646550419848,23.2067,88.338,88.261,68.8720842]
[1646550420249,23.2067,88.338,88.262,17.22641365]
[1646550420651,23.2067,88.338,88.263,2.83613526]
[1646550420955,112.5,88.337,88.263,2.83613526]
[1646550421151,112.5,88.335,88.263,2.83613526]
[1646550421353,5.662,88.334,88.263,2.83613526]
[1646550422455,5.662,88.336,88.263,2.83613526]
[1646550422651,23.2067,88.338,88.264,26.32708107]
[1646550422652,5.662,88.337,88.264,26.32708107]
[1646550423053,5.662,88.337,88.265,2.83613526]
[1646550424154,23.2067,88.338,88.265,2.83613526]
[1646550426453,5.662,88.337,88.265,2.83613526]
[1646550426655,112.5,88.336,88.265,2.83613526]
[1646550426857,118.162,88.335,88.265,2.83613526]
[1646550427358,67.79,88.334,88.265,2.83613526]
[1646550427559,67.79,88.323,88.241,27.50753526]
[1646550428725,112.5,88.309,88.241,24.6714]
[1646550428762,112.5,88.307,88.241,24.6714]
[1646550428793,5.664,88.306,88.242,49.04981531]
[1646550428846,5.664,88.307,88.242,49.04981531]
[1646550429160,5.664,88.307,88.248,0.26204886]
[1646550433770,112.5,88.306,88.248,0.26204886]
[1646550433963,118.163,88.305,88.248,0.26204886]
[1646550434263,1.52049339,88.302,88.248,0.26204886]
[1646550434464,1.52049339,88.294,88.248,0.26204886]
[1646550434663,112.5,88.292,88.248,0.26204886]
[1646550434864,28.7795,88.291,88.248,0.26204886]
[1646550436565,1.52049339,88.288,88.248,0.26204886]
[1646550436765,5.664,88.287,88.248,0.26204886]
[1646550437166,7.18449339,88.287,88.248,0.26204886]
[1646550437566,5.664,88.287,88.248,0.26204886]
[1646550437766,1.52049339,88.29,88.248,0.26204886]
[1646550437966,1.52049339,88.289,88.248,0.26204886]
[1646550439466,1.52049339,88.277,88.248,0.26204886]
[1646550440870,1.52049339,88.278,88.248,0.26204886]
[1646550441476,1.52049339,88.279,88.248,0.26204886]
[1646550441969,1.52049339,88.274,88.248,0.26204886]
[1646550442172,1.52049339,88.275,88.248,0.26204886]
[1646550442571,1.52049339,88.272,88.248,0.26204886]
[1646550442771,1.52049339,88.271,88.248,0.26204886]
[1646550443173,1.52049339,88.279,88.248,0.26204886]
[1646550443492,1.52049339,88.288,88.248,8.37204886]
[1646550443693,1.52049339,88.288,88.249,2.83613526]
[1646550443893,1.52049339,88.289,88.249,2.83613526]
[1646550444396,1.52049339,88.29,88.249,2.83613526]
[1646550444794,1.52049339,88.291,88.249,2.83613526]
[1646550444995,1.52049339,88.29,88.249,2.83613526]
[1646550445494,1.52049339,88.291,88.249,2.83613526]
[1646550445695,1.52049339,88.292,88.249,2.83613526]
[1646550446095,1.52049339,88.292,88.241,23.5684]
[1646550446295,1.52049339,88.288,88.241,23.5684]
[1646550446497,1.52049339,88.284,88.241,23.5684]
[1646550446799,1.52049339,88.283,88.241,23.5684]
[1646550447196,1.52049339,88.281,88.241,23.5684]
[1646550447397,1.52049339,88.282,88.241,23.5684]
[1646550447797,1.52049339,88.283,88.241,23.5684]
[1646550447996,1.52049339,88.282,88.241,23.5684]
[1646550448397,1.52049339,88.283,88.241,23.5684]
[1646550448597,1.52049339,88.282,88.241,23.5684]
[1646550448799,1.52049339,88.283,88.241,23.5684]
[1646550449303,1.52049339,88.282,88.241,23.5684]
[1646550449500,1.52049339,88.283,88.241,23.5684]
[1646550449900,1.52049339,88.282,88.241,23.5684]
[1646550450102,1.52049339,88.281,88.241,23.5684]
[1646550450302,1.52049339,88.282,88.241,23.5684]
[1646550450902,5.665,88.305,88.241,23.5684]
[1646550450903,1.52049339,88.283,88.241,23.5684]
[1646550451603,1.52049339,88.282,88.241,23.5684]
[1646550451806,1.52049339,88.283,88.241,23.5684]
[1646550452203,1.52049339,88.284,88.241,23.5684]
[1646550452903,1.52049339,88.282,88.241,23.5684]
[1646550453104,1.52049339,88.283,88.241,23.5684]
[1646550453305,1.52049339,88.285,88.241,23.5684]
[1646550453704,1.52049339,88.286,88.241,23.5684]
[1646550454505,1.52049339,88.287,88.241,23.5684]
[1646550454706,1.52049339,88.288,88.241,23.5684]
[1646550455107,1.52049339,88.289,88.241,23.5684]
[1646550455509,1.52049339,88.288,88.241,23.5684]
[1646550455809,1.52049339,88.287,88.241,23.5684]
[1646550456209,23.1482,88.31,88.241,23.5684]
[1646550456210,1.52049339,88.286,88.241,23.5684]
[1646550457209,1.52049339,88.287,88.241,23.5684]
[1646550457608,1.52049339,88.285,88.241,23.5684]
[1646550458709,1.52049339,88.284,88.242,2.83613526]
[1646550458912,1.52049339,88.287,88.242,2.83613526]
[1646550459109,1.52049339,88.293,88.242,2.83613526]
[1646550459313,1.52049339,88.293,88.243,26.32708107]
[1646550459510,1.52049339,88.294,88.244,0.22026279]
[1646550459712,1.52049339,88.299,88.251,50.57152694]
[1646550459910,1.52049339,88.307,88.253,0.39024558]
[1646550460312,1.52049339,88.308,88.253,0.39024558]
[1646550460512,1.52049339,88.309,88.254,2.83613526]
[1646550460714,1.52049339,88.309,88.26,16.9924]
[1646550460915,1.52049339,88.31,88.262,0.25972792]
[1646550461113,1.52049339,88.314,88.264,0.2799898]
[1646550461716,1.52049339,88.315,88.264,0.2799898]
[1646550462717,1.52049339,88.314,88.264,0.2799898]
[1646550463816,5.663,88.338,88.264,0.2799898]
[1646550463817,1.52049339,88.317,88.264,0.2799898]
[1646550464017,1.52049339,88.318,88.27,16.9928]
[1646550465017,1.52049339,88.317,88.27,16.9928]
[1646550465518,1.52049339,88.316,88.262,22.8738]
[1646550465818,1.52049339,88.314,88.262,22.8738]
[1646550466419,1.52049339,88.312,88.262,22.8738]
[1646550466618,1.52049339,88.311,88.262,22.8738]
[1646550466822,112.5,88.333,88.262,22.8738]
[1646550466823,1.52049339,88.297,88.262,22.8738]
[1646550467022,1.52049339,88.296,88.262,22.8738]
[1646550467421,1.52049339,88.297,88.262,22.8738]
[1646550467721,1.52049339,88.296,88.262,22.8738]
[1646550467920,1.52049339,88.297,88.262,22.8738]
[1646550468920,1.52049339,88.296,88.262,22.8738]
[1646550469322,1.52049339,88.297,88.262,22.8738]
[1646550469821,1.52049339,88.296,88.262,22.8738]
[1646550471025,1.52049339,88.297,88.262,22.8738]
[1646550472133,1.52049339,88.296,88.262,22.8738]
[1646550472727,1.52049339,88.295,88.262,22.8738]
[1646550472928,1.52049339,88.294,88.262,22.8738]
[1646550473828,1.52049339,88.295,88.262,22.8738]
[1646550474028,1.52049339,88.294,88.262,22.8738]